Workbook

Sheet Title Page
B1: Water Demand Calculator for Estimating Peak Water Demand for Indoor Residential Water Use Version 2.2 July, 2024
B2: Authors: Steven Buchberger, (PE), PhD - Professor, Civil and Environmental Engineering, University of Cincinnati Toritseju Omaghomi, PhD - Environmental Engineering, University of Cincinnati Timothy Wolfe (PE) - Director, Plumbing Engineering, TRC Worldwide Engineering – MEP, LLC Jason Hewitt (PE) - Seattle Office Manager, CB Engineers - P.E., CPD, LEED AP Daniel Cole - Chair - Sr. Director of Technical Services, International Association of Plumbing and Mechanical Officials (IAPMO).
B3: Abstract: The Water Demand Calculator (WDC) is an application that computes the 99th percentile of the instantaneous water demand expected during the period of peak indoor use in a residential building that is fitted with efficient (water conserving) fixtures. The WDC can be applied to estimate peak demand in residential buildings ranging from single family homes to large multi-family apartments and condominium complexes. The user provides the number and the flow rate for each type of indoor fixture in the residential building. The WDC summarizes the input data and returns an estimate of the corresponding 99th percentile of the instantaneous water demand.
B4: Acknowledgments: Sponsors - International Association of Plumbing and Mechanical Officials (IAPMO), Water Quality Association (WQA), American Society of Plumbing Engineers (ASPE) Code: Developed By Toritseju Omaghomi
B5: System Requirements: The Water Demand Calculator is a Microsoft Office Excel file and requires a compatible version of Excel 2009 or later to prevent loss of functionality. This file also uses active content (macros). When downloading this file, Microsoft Office has security features causing a message bar to appear warning that the active content may contain viruses and other security hazards that could harm your computer or your organization’s network and that the macros have been disabled. This does not mean that viruses have been detected. It only means that active content has been detected and the user is being warned. Since the source file comes from IAPMO, the file can be trusted and the macros can be enabled. You may need to change the settings in the Trust Center on your computer (find this in the Options section of Microsoft Office applications). Once the file is trusted, the warning will no longer appear. You may also need to check with your company's System's Administrator for security permission to download a file with macros.
B6: Disclaimer: Although care has been taken to ensure the accuracy, completeness and reliability of the Water Demand Calculator (“Calculator”), neither IAPMO nor any other party makes any warranties, express or implied, or representations as to the accuracy of the Calculator. Neither IAPMO nor any other party assumes any liability or responsibility for any error or omissions in the information contained in or output by the Calculator. Neither IAPMO nor any other party assumes any responsibility for the consequences of use of such information, nor for any infringement of third party intellectual property rights which may result from its use.
B7: Visit IAPMO web site for more information at
B8: http://www.iapmo.org/WEStand/Pages/WaterDemandCalculator.aspx

Sheet Key

Sheet DemandEstimate
F1: Water Demand Calculator® (WDC v2.2)
A3: PROJECT NAME : | E3: - - - - - | I3: =IF(E4="Multi-Family Building","Total Number of Apartments in the Building→"," ") ->  | J3: 0 | L3: =TODAY() -> 2025-10-15
C4: Click for Drop-down Menu → | E4: Single-Family Residence | I4: =IF(E4="Multi-Family Building","Total Apartments in this Calculation→"," ") ->  | J4: 0 | L4: =NOW() -> 45945.25865
C6: FIXTURE GROUPS | D6: FIXTURE | F6: ENTER TOTAL NUMBER OF FIXTURES | G6: PROBABILITY OF USE (%) | H6: =UnitConversion!B5 -> ENTER FIXTURE FLOW RATE (GPM) | I6: =UnitConversion!B6 -> MAXIMUM RECOMMENDED FIXTURE FLOW RATE (GPM) | L6: COMPUTED RESULTS FOR PEAK PERIOD CONDITIONS
J7: Single-Family Residence
J8: Multi-Family Building
C9: Bathroom Fixtures | D9: 1 | E9: Bathtub (no Shower) | F9: 0 | G9: =MW!E5*100 -> 1 | H9: 5.5 | I9: =UnitConversion!C5 -> 5.5
D10: 2 | E10: Bidet | F10: 0 | G10: =MW!E6*100 -> 1 | H10: 2 | I10: =UnitConversion!C6 -> 2 | L10: Total No. of Fixtures in Calculation
D11: 3 | E11: Combination Bath/Shower | F11: 0 | G11: =MW!E7*100 -> 5.5 | H11: 5.5 | I11: =UnitConversion!C7 -> 5.5
D12: 4 | E12: Faucet, Lavatory | F12: 0 | G12: =MW!E8*100 -> 2 | H12: 1.5 | I12: =UnitConversion!C8 -> 1.5
D13: 5 | E13: Shower, per head (no Bathtub) | F13: 0 | G13: =MW!E9*100 -> 4.5 | H13: 2 | I13: =UnitConversion!C9 -> 2 | L13: 99th Percentile Demand Flow
D14: 6 | E14: =UnitConversion!B10 -> Water Closet, 1.28 GPF Gravity Tank | F14: 0 | G14: =MW!E10*100 -> 1 | H14: 3 | I14: =UnitConversion!C10 -> 3
C15: Kitchen Fixtures | D15: 7 | E15: Dishwasher | F15: 0 | G15: =MW!E11*100 -> 0.5 | H15: 1.3 | I15: =UnitConversion!C11 -> 1.3 | R15: =AND(F20>0,G20>0,H20>0) -> FALSE | S15: =AND(F20=0,G20=0,H20=0) -> TRUE | T15: =R15=S15 -> FALSE | U15: =IF(OR(T15=TRUE,,T16=TRUE,T17=TRUE),1,0) -> 0
D16: 8 | E16: Faucet, Kitchen Sink | F16: 0 | G16: =MW!E12*100 -> 2 | H16: 2.2 | I16: =UnitConversion!C12 -> 2.2 | L16: Hunter Number | R16: =AND(F21>0,G21>0,H21>0) -> FALSE | S16: =AND(F21=0,G21=0,H21=0) -> TRUE | T16: =R16=S16 -> FALSE
C17: Laundry Room Fixtures | D17: 9 | E17: Clothes Washer | F17: 0 | G17: =MW!E13*100 -> 5.5 | H17: 3.5 | I17: =UnitConversion!C13 -> 3.5 | R17: =AND(F22>0,G22>0,H22>0) -> FALSE | S17: =AND(F22=0,G22=0,H22=0) -> TRUE | T17: FALSE
D18: 10 | E18: Faucet, Laundry | F18: 0 | G18: =MW!E14*100 -> 2 | H18: 2 | I18: =UnitConversion!C14 -> 2
C19: Bar/Prep Fixtures | D19: 11 | E19: Faucet, Bar Sink | F19: 0 | G19: =MW!E15*100 -> 2 | H19: 1.5 | I19: =UnitConversion!C15 -> 1.5 | L19: Stagnation Probability
C20: Other Fixtures | D20: 12 | E20: Fixture 1 | F20: 0 | G20: 0 | H20: 0 | I20: =UnitConversion!C16 -> 6
D21: 13 | E21: Fixture 2 | F21: 0 | G21: 0 | H21: 0 | I21: =UnitConversion!C17 -> 6
D22: 14 | E22: Fixture 3 | F22: 0 | G22: 0 | H22: 0 | I22: =UnitConversion!C18 -> 6 | L22: Method of Computation
E24: ↓ Select Units for Water Demand ↓ | I24: =IF(MW!$T$21=0," ← CLICK BUTTON ←"," ") -> ← CLICK BUTTON ←
K25: =IF(OR(F22>0,F21>0,F20>0)," Enter 'Other Fixture' Probability of use (0.1 - 6%) in [Column C] "," ") -> 
K26: =IF(OR(F22>0,F21>0,F20>0)," Enter 'Other Fixture' flow rate in [Column D]"," ") -> 

Sheet UnitConversion (hidden)
B1: GPM | C1: GPM | D1: LPM | E1: LPS
B2: 1-Imperial (gallons/minute); 0 - SI units (Liters/minute); 2 - SI units (Liters/seconds); | C2: =IF(B1="GPM",1,IF(B1="LPM",0,2)) -> 1 | F2: imperial | H2: SI (Metric)
B3: CURRENT SELECTION | F3: 1 | H3: 0 | I3: 2
C4: =IF($C$2=1,F4,IF($C$2=0,H4,I4)) -> GPM = | F4: GPM = | H4: LPM = | I4: LPS = | K4: ENTER FIXTURE FLOW RATE (GPM) | L4: MAXIMUM RECOMMENDED FIXTURE FLOW RATE (GPM)
B5: =IF($C$2=1,K4,IF($C$2=0,K8,K12)) -> ENTER FIXTURE FLOW RATE (GPM) | C5: =IF($C$2=1,F5,IF($C$2=0,H5,I5)) -> 5.5 | E5: Bathtub (no Shower) | F5: 5.5 | H5: 20.8 | I5: 0.35
B6: =IF($C$2=1,L4,IF($C$2=0,L8,L12)) -> MAXIMUM RECOMMENDED FIXTURE FLOW RATE (GPM) | C6: =IF($C$2=1,F6,IF($C$2=0,H6,I6)) -> 2 | E6: Bidet | F6: 2 | H6: 7.6 | I6: 0.13
C7: =IF($C$2=1,F7,IF($C$2=0,H7,I7)) -> 5.5 | E7: Combination Bath/Shower | F7: 5.5 | H7: 20.8 | I7: 0.35
C8: 1.5 | E8: Faucet, Lavatory | F8: 1.5 | H8: 5.7 | I8: 0.09 | K8: ENTER FIXTURE FLOW RATE (LPM) | L8: MAXIMUM RECOMMENDED FIXTURE FLOW RATE (LPM)
C9: 2 | E9: Shower, per head (no Bathtub) | F9: 2 | H9: 7.6 | I9: 0.13
B10: =IF($C$2=1,E10,G10) -> Water Closet, 1.28 GPF Gravity Tank | C10: 3 | E10: Water Closet, 1.28 GPF Gravity Tank | F10: 3 | G10: Water Closet, 4.8 LPF Gravity Tank | H10: 11.4 | I10: 0.19
C11: 1.3 | E11: Dishwasher | F11: 1.3 | H11: 4.9 | I11: 0.08
C12: 2.2 | E12: Faucet, Kitchen Sink | F12: 2.2 | H12: 8.3 | I12: 0.14 | K12: ENTER FIXTURE FLOW RATE (LPS) | L12: MAXIMUM RECOMMENDED FIXTURE FLOW RATE (LPS)
C13: 3.5 | E13: Clothes Washer | F13: 3.5 | H13: 13.3 | I13: 0.22
C14: 2 | E14: Faucet, Laundry | F14: 2 | H14: 7.6 | I14: 0.13
C15: 1.5 | E15: Faucet, Bar Sink | F15: 1.5 | H15: 5.7 | I15: 0.09
C16: 6 | E16: Other Fixture 1 | F16: 6 | H16: 22.7 | I16: 0.38
C17: 6 | E17: Other Fixture 2 | F17: 6 | H17: 22.7 | I17: 0.38
C18: =IF($C$2=1,F18,IF($C$2=0,H18,I18)) -> 6 | E18: Other Fixture 3 | F18: 6 | H18: 22.7 | I18: 0.38
B20: Minimum | C20: =IF($C$2=1,F20,IF($C$2=0,H20,I20)) -> 0.25 | E20: Minimum | F20: 0.25 | H20: 1 | I20: 0.015
B21: maximum | C21: =IF($C$2=1,F21,IF($C$2=0,H21,I21)) -> 6 | E21: maximum | F21: 6 | H21: 22.7 | I21: 0.38

Sheet MW (hidden)
C1: =DemandEstimate!E4 -> Single-Family Residence | H1: 99th Percentile demand flow in residential building
C2: If 1, Single family residence else Multi family | D2: Check if cell J4 (DemandEstimate) is blank OR 0 | AC2: IPC | AE2: UPC | AG2: ASHRAE Mod.HC
C3: =IF(C1="Single-Family Residence",1,0) -> 1 | D3: =OR(E4="",E4=0) -> TRUE | E3: H > 0 | F3: Fixture type | G3: n | H3: p | I3: q | J3: npq | K3: np(1-p)q^2 | L3: Po | M3: nq | O3: np | P3: npq | U3: CONV comb | AA3: Fixture type | AB3: Number of fixtures | AC3: WSFU | AD3: WSFU | AE3: WSFU | AF3: WSFU | AG3: WSFU | AH3: WSFU
C4: =IF(C3=1,1,E4) -> 1 | D4: P1 | E4: =DemandEstimate!J4 -> 0 | G4: Count | H4: Probability | I4: Flow rate | J4: Mean Flow | K4: Flow variance | L4: Prob. No flow | M4: Max possible flow | R4: Old Npq | S4: Current Npq | AC4: units | AD4: project | AE4: units | AF4: project | AG4: units | AH4: project
C5: =IF($C$3=1,D5,IF($D$3=TRUE,D5,IF($C$4=1,D5,1.2*D5*$C$4^-0.25))) -> 0.01 | D5: 0.01 | E5: =ROUND(C5,4) -> 0.01 | F5: Bathtub (no Shower) | G5: =DemandEstimate!F9 -> 0 | H5: =IF(G5=0,0,E5) -> 0 | I5: =IF(G5=0,0,DemandEstimate!H9) -> 0 | J5: =G5*H5*I5 -> 0 | K5: =G5*H5*(1-H5)*I5^2 -> 0 | L5: =(1-H5)^G5 -> 1 | M5: =G5*I5 -> 0 | O5: =G5*H5 -> 0 | P5: =G5*H5*I5 -> 0 | R5: 0 | S5: =P5 -> 0 | T5: =R5=S5 -> TRUE | U5: =G5+1 -> 1 | V5: k=1 | W5: n+1 | AA5: Bathtub (no Shower) | AB5: =G5 -> 0 | AC5: 10 | AD5: =AC5*AB5 -> 0 | AE5: 10 | AF5: =AB5*AE5 -> 0 | AG5: 1.5 | AH5: =AG5*AB5 -> 0
C6: =IF($C$3=1,D6,IF($D$3=TRUE,D6,IF($C$4=1,D6,0.75*D6*$C$4^-0.07))) -> 0.01 | D6: 0.01 | E6: =ROUND(C6,4) -> 0.01 | F6: Bidet | G6: =DemandEstimate!F10 -> 0 | H6: =IF(G6=0,0,E6) -> 0 | I6: =IF(G6=0,0,DemandEstimate!H10) -> 0 | J6: =G6*H6*I6 -> 0 | K6: =G6*H6*(1-H6)*I6^2 -> 0 | L6: =(1-H6)^G6 -> 1 | M6: 0 | O6: =G6*H6 -> 0 | P6: =G6*H6*I6 -> 0 | R6: 0 | S6: =P6 -> 0 | T6: =R6=S6 -> TRUE | U6: =U5*(G6+1) -> 1 | V6: k=2 | W6: (n2+1)*(n1+1) | AA6: Bidet | AB6: =G6 -> 0 | AC6: 1 | AD6: 0 | AE6: 1 | AF6: 0 | AG6: 0.75 | AH6: =AG6*AB6 -> 0
C7: =IF($C$3=1,D7,IF($D$3=TRUE,D7,IF($C$4=1,D7,0.92*D7*$C$4^-0.28))) -> 0.055 | D7: 0.055 | E7: 0.055 | F7: Combination Bath/Shower | G7: =DemandEstimate!F11 -> 0 | H7: =IF(G7=0,0,E7) -> 0 | I7: =IF(G7=0,0,DemandEstimate!H11) -> 0 | J7: 0 | K7: =G7*H7*(1-H7)*I7^2 -> 0 | L7: 1 | M7: 0 | O7: =G7*H7 -> 0 | P7: =G7*H7*I7 -> 0 | R7: 1.5125 | S7: 0 | T7: FALSE | U7: =U6*(G7+1) -> 1 | V7: k=3 | W7: (n3+1)*(n2+1)*(n1+1) | AA7: Combination Bath/Shower | AB7: 0 | AC7: 4 | AD7: 0 | AE7: 4 | AF7: 0 | AG7: 1.5 | AH7: 0
C8: =IF($C$3=1,D8,IF($D$3=TRUE,D8,IF($C$4=1,D8,1.1*D8*$C$4^-0.15))) -> 0.02 | D8: 0.02 | E8: 0.02 | F8: Faucet, Lavatory | G8: =DemandEstimate!F12 -> 0 | H8: =IF(G8=0,0,E8) -> 0 | I8: =IF(G8=0,0,DemandEstimate!H12) -> 0 | J8: 0 | K8: =G8*H8*(1-H8)*I8^2 -> 0 | L8: 1 | M8: 0 | O8: 0 | P8: 0 | R8: 0.24 | S8: 0 | T8: FALSE | U8: 1 | AA8: Faucet, Lavatory | AB8: 0 | AC8: 1.5 | AD8: 0 | AE8: 1.5 | AF8: 0 | AG8: 1.5 | AH8: 0
C9: =IF($C$3=1,D9,IF($D$3=TRUE,D9,IF($C$4=1,D9,0.82*D9*$C$4^-0.3))) -> 0.045 | D9: 0.045 | E9: 0.045 | F9: Shower, per head (no Bathtub) | G9: =DemandEstimate!F13 -> 0 | H9: 0 | I9: =IF(G9=0,0,DemandEstimate!H13) -> 0 | J9: 0 | K9: =G9*H9*(1-H9)*I9^2 -> 0 | L9: =(1-H9)^G9 -> 1 | M9: 0 | O9: 0 | P9: 0 | R9: 0.18 | S9: 0 | T9: FALSE | U9: 1 | AA9: Shower, per head (no Bathtub) | AB9: 0 | AC9: 2 | AD9: 0 | AE9: 2 | AF9: 0 | AG9: 1.5 | AH9: 0
C10: =IF($C$3=1,D10,IF($D$3=TRUE,D10,IF($C$4=1,D10,0.75*D10*$C$4^-0.07))) -> 0.01 | D10: 0.01 | E10: 0.01 | F10: Water Closet, 1.28 GPF Gravity Tank | G10: =DemandEstimate!F14 -> 0 | H10: =IF(G10=0,0,E10) -> 0 | I10: =IF(G10=0,0,DemandEstimate!H14) -> 0 | J10: 0 | K10: 0 | L10: 1 | M10: 0 | O10: 0 | P10: 0 | R10: 0.03 | S10: 0 | T10: FALSE | U10: 1 | AA10: Water Closet, 1.28 GPF Gravity Tank | AB10: 0 | AC10: 2.5 | AD10: 0 | AE10: 2.5 | AF10: 0 | AG10: 0.75 | AH10: 0
C11: =IF($C$3=1,D11,IF($D$3=TRUE,D11,IF($C$4=1,D11,1*D11*$C$4^-0.1))) -> 0.005 | D11: 0.005 | E11: 0.005 | F11: Dishwasher | G11: =DemandEstimate!F15 -> 0 | H11: 0 | I11: =IF(G11=0,0,DemandEstimate!H15) -> 0 | J11: 0 | K11: 0 | L11: 1 | M11: 0 | O11: 0 | P11: 0 | R11: 0.026 | S11: 0 | T11: FALSE | U11: 1 | AA11: Dishwasher | AB11: 0 | AC11: 1.5 | AD11: 0 | AE11: 1.5 | AF11: 0 | AG11: 1.5 | AH11: 0
C12: =IF($C$3=1,D12,IF($D$3=TRUE,D12,IF($C$4=1,D12,1.1*D12*$C$4^-0.15))) -> 0.02 | D12: 0.02 | E12: 0.02 | F12: Faucet, Kitchen Sink | G12: =DemandEstimate!F16 -> 0 | H12: 0 | I12: =IF(G12=0,0,DemandEstimate!H16) -> 0 | J12: 0 | K12: =G12*H12*(1-H12)*I12^2 -> 0 | L12: 1 | M12: 0 | O12: =G12*H12 -> 0 | P12: =G12*H12*I12 -> 0 | R12: 0.308 | S12: 0 | T12: FALSE | U12: 1 | AA12: Faucet, Kitchen Sink | AB12: 0 | AC12: 1.5 | AD12: 0 | AE12: 1.5 | AF12: 0 | AG12: 0.75 | AH12: 0
C13: =IF($C$3=1,D13,IF($D$3=TRUE,D13,IF($C$4=1,D13,0.95*D13*$C$4^-0.3))) -> 0.055 | D13: 0.055 | E13: 0.055 | F13: Clothes Washer | G13: =DemandEstimate!F17 -> 0 | H13: 0 | I13: =IF(G13=0,0,DemandEstimate!H17) -> 0 | J13: 0 | K13: =G13*H13*(1-H13)*I13^2 -> 0 | L13: 1 | M13: 0 | O13: =G13*H13 -> 0 | P13: 0 | R13: 0.5775 | S13: 0 | T13: FALSE | U13: 1 | AA13: Clothes Washer | AB13: 0 | AC13: 4 | AD13: 0 | AE13: 4 | AF13: 0 | AG13: 1.2 | AH13: 0
C14: =IF($C$3=1,D14,IF($D$3=TRUE,D14,IF($C$4=1,D14,1.1*D14*$C$4^-0.15))) -> 0.02 | D14: 0.02 | E14: 0.02 | F14: Faucet, Laundry | G14: =DemandEstimate!F18 -> 0 | H14: 0 | I14: =IF(G14=0,0,DemandEstimate!H18) -> 0 | J14: =G14*H14*I14 -> 0 | K14: =G14*H14*(1-H14)*I14^2 -> 0 | L14: 1 | M14: =G14*I14 -> 0 | O14: =G14*H14 -> 0 | P14: =G14*H14*I14 -> 0 | R14: 0 | S14: =P14 -> 0 | T14: =R14=S14 -> TRUE | U14: 1 | AA14: Faucet, Laundry | AB14: 0 | AC14: 1.5 | AD14: 0 | AE14: 1.5 | AF14: 0 | AG14: 1.5 | AH14: 0
C15: =IF($C$3=1,D15,IF($D$3=TRUE,D15,IF($C$4=1,D15,1.1*D15*$C$4^-0.15))) -> 0.02 | D15: 0.02 | E15: 0.02 | F15: Faucet, Bar Sink | G15: =DemandEstimate!F19 -> 0 | H15: 0 | I15: =IF(G15=0,0,DemandEstimate!H19) -> 0 | J15: =G15*H15*I15 -> 0 | K15: =G15*H15*(1-H15)*I15^2 -> 0 | L15: 1 | M15: =G15*I15 -> 0 | O15: 0 | P15: =G15*H15*I15 -> 0 | R15: 0 | S15: =P15 -> 0 | T15: =R15=S15 -> TRUE | U15: 1 | AA15: Faucet, Bar Sink | AB15: 0 | AC15: 1 | AD15: 0 | AE15: 1 | AF15: 0 | AG15: 0.75 | AH15: 0
C16: =D16/100 -> 0 | D16: =DemandEstimate!G20 -> 0 | E16: 0 | F16: Other Fixture 1 | G16: =DemandEstimate!F20 -> 0 | H16: 0 | I16: =IF(G16=0,0,DemandEstimate!H20) -> 0 | J16: =G16*H16*I16 -> 0 | K16: =G16*H16*(1-H16)*I16^2 -> 0 | L16: =(1-H16)^G16 -> 1 | M16: =G16*I16 -> 0 | O16: 0 | P16: =G16*H16*I16 -> 0 | R16: 0 | S16: =P16 -> 0 | T16: =R16=S16 -> TRUE | U16: 1 | AA16: Other Fixture
C17: =D17/100 -> 0 | D17: =DemandEstimate!G21 -> 0 | E17: 0 | F17: Other Fixture 2 | G17: =DemandEstimate!F21 -> 0 | H17: 0 | I17: =IF(G17=0,0,DemandEstimate!H21) -> 0 | J17: =G17*H17*I17 -> 0 | K17: =G17*H17*(1-H17)*I17^2 -> 0 | L17: =(1-H17)^G17 -> 1 | M17: =G17*I17 -> 0 | O17: 0 | P17: =G17*H17*I17 -> 0 | R17: 0 | S17: =P17 -> 0 | T17: =R17=S17 -> TRUE | U17: 1 | AD17: =SUM(AD5:AD16) -> 0 | AF17: =SUM(AF5:AF16) -> 0 | AH17: =SUM(AH5:AH16) -> 0
C18: 0 | D18: =DemandEstimate!G22 -> 0 | E18: =ROUND(C18,4) -> 0 | F18: Other Fixture 3 | G18: =DemandEstimate!F22 -> 0 | H18: 0 | I18: =IF(G18=0,0,DemandEstimate!H22) -> 0 | J18: 0 | K18: 0 | L18: =(1-H18)^G18 -> 1 | M18: =G18*I18 -> 0 | O18: =G18*H18 -> 0 | P18: =G18*H18*I18 -> 0 | R18: 0 | S18: 0 | T18: TRUE | U18: =U17*(G18+1) -> 1
F19: Total | G19: =SUM(G5:G18) -> 0 | H19: =SUM(H5:H18) -> 0 | I19: =SUMPRODUCT(I5:I18,G5:G18) -> 0 | J19: =SUM(J5:J18) -> 0 | K19: =SUM(K5:K18) -> 0 | L19: =PRODUCT(L5:L18) -> 1 | M19: =SUM(M5:M18) -> 0 | O19: =SUM(O5:O18) -> 0 | P19: =SUM(P5:P18) -> 0
E20: Percentile | F20: Pnot | G20: =L19 -> 1 | I20: Busy time | J20: =J19/(1-L19) ->  | K20: =ROUND((O24-P24)/(1-L19)^2,13) ->  | O20: =SUMPRODUCT(G5:G18,H5:H18) -> 0 | T20: =AND(T5:T19) -> FALSE
E21: 0.99 | F21: Z value | G21: 2.326347874 | K21: =(O24-P24)/(N24)^2 ->  | S21: Check for changes | T21: =IF(T20,1,0) -> 0
F22: Demand Q ( Wistort) | G22: =J19+($G$21*SQRT(K19)) -> 0 | H22: =UnitConversion!$B$1 -> GPM | T22: if 0, then it changed
F23: Demand Q (Modified Wistort) | G23: =J20+($G$21*SQRT(K20)) ->  | H23: =UnitConversion!$B$1 -> GPM | N23: 1-Po | O23: (1-Po)*var | P23: Po*mean^2 | R23: avg p | S23: =O19/G19 -> 
D24: NP = | E24: =MW!O20 -> 0 | F24: Convolution | G24: 14.5 | H24: =UnitConversion!$B$1 -> GPM | I24: 0.9916905642 | N24: =1-L19 -> 0 | O24: =N24*K19 -> 0 | P24: =L19*J19^2 -> 0 | R24: avg q | S24: =I19/G19 -> 
D25: Adjusted Z | E25: =G21*(1+G20) -> 4.652695748 | F25: Adjusted Modified Wistort | G25: =J20+($E$25*SQRT(K20)) ->  | H25: =UnitConversion!$B$1 -> GPM | R25: qbar | S25: =P19/O19 -> 
F26: Q1 | G26: =IF(G19=1,I19,"") ->  | H26: =UnitConversion!$B$1 -> GPM
D27: H | E27: =E24/(1-G20) -> 
F28: WSFU-UPC | G28: =IF($G$19=0," ",INDEX(UPC_IPC_ASHRAE!P3:P402,MATCH(ROUND(AD17,0),UPC_IPC_ASHRAE!O3:O402,1))) ->  | H28: =UnitConversion!$B$1 -> GPM
D29: # fix group | E29: =COUNTIF(G5:G18,">0") -> 0 | F29: ASHRAE | G29: =IF($G$19=0," ",INDEX(UPC_IPC_ASHRAE!P3:P402,MATCH(ROUND(AH17,0),UPC_IPC_ASHRAE!O3:O402,1))) ->  | H29: =UnitConversion!$B$1 -> GPM
F30: Selected Peak Demand | G30: Q = 14.5 GPM
F31: SumN | G31: N = 30
A32: Fixture | B32: P1 | C32: Ph; h ³ 2, .., 20 | F32: Hunter number | G32: H(n,p) = 0.86
A33: Bathtub | B33: 0.01 | C33: 1.20 P1 h -0.25 | F33: Stagnationp prob | G33: Pr[Zero Demand] = 42%
A34: Clothes washer | B34: 0.055 | C34: 0.95 P1 h -0.30 | F34: Design demand Method Selected | G34: Convolution
A35: Dishwasher | B35: 0.005 | C35: 1.00 P1 h -0.10
A36: Faucet | B36: 0.02 | C36: 1.10 P1 h -0.15
A37: Shower | B37: 0.045 | C37: 0.82 P1 h -0.30
A38: Toilet | B38: 0.01 | C38: 0.75 P1 h -0.07

Sheet Results (hidden)
C2: WDC v2.2 Results
B3: _________________________________________________________________________________________
B5: Project Name: | C5: =DemandEstimate!E3 -> - - - - -
B6: Building Type: | C6: =IF(E6=1,"Single-Family","Multi-Family") -> Single-Family | E6: =IF(DemandEstimate!E4="Single-Family Residence",1,0) -> 1
B7: Number of Apartments in Building: | C7: =IF($E$6=1,"-",DemandEstimate!J3) -> -
B8: Number of Apartments in Calculation: | C8: =IF($E$6=1,"-",DemandEstimate!J4) -> -
B9: Total Fixture Count in Calculation: | C9: =MW!G31 -> N = 30
B10: 99th Percentile Demand Estimate: | C10: =MW!G30 -> Q = 14.5 GPM
B11: Peak Period Hunter Number: | C11: =MW!G32 -> H(n,p) = 0.86
B12: Peak Period Stagnation Probability: | C12: =MW!G33 -> Pr[Zero Demand] = 42%
B13: Method of Computation: | C13: =MW!G34 -> Convolution
B15: FIXTURE | C15: COUNT | D15: =UnitConversion!B1 -> GPM
B16: Bathtub (no Shower) | C16: =IF(I34=0,"",I34) ->  | D16: =IF(I34=0,"",G34) ->  | G16: =IF(I34=0,CONCATENATE(J34,H34,K34),CONCATENATE(J34,H34,K34,I34)) -> Bathtub (no Shower)
B17: Bidet | C17: =IF(I35=0,"",I35) ->  | D17: =IF(I35=0,"",G35) -> 
B18: Combination Bath/Shower | C18: =IF(I36=0,"",I36) ->  | D18: =IF(I36=0,"",G36) -> 
B19: Faucet, Lavatory
B20: Shower, per head (no Bathtub) | C20: =IF(I38=0,"",I38) -> 
B21: =DemandEstimate!E14 -> Water Closet, 1.28 GPF Gravity Tank
B22: Dishwasher
B23: Faucet, Kitchen Sink
B24: Clothes Washer
B25: Faucet, Laundry
B26: Faucet, Bar Sink
B27: =DemandEstimate!E20 -> Fixture 1
B28: =DemandEstimate!E21 -> Fixture 2
B29: =DemandEstimate!E22 -> Fixture 3
B30: _________________________________________________________________________________________
B31: END
J33: Front space | K33: middle space
G34: =DemandEstimate!H9 -> 5.5 | H34: Bathtub (no Shower) | I34: =DemandEstimate!F9 -> 0 | J34: =" " ->  | K34: =" " -> 
G35: =DemandEstimate!H10 -> 2 | H35: Bidet | I35: =DemandEstimate!F10 -> 0 | J35: =" " ->  | K35: =" " -> 
G36: =DemandEstimate!H11 -> 5.5 | H36: Combination Bath/Shower | I36: =DemandEstimate!F11 -> 0 | J36: =" " ->  | K36: =" " -> 
G37: =DemandEstimate!H12 -> 1.5 | H37: Faucet, Lavatory | I37: =DemandEstimate!F12 -> 0 | J37: =" " ->  | K37: =" " -> 
G38: =DemandEstimate!H13 -> 2 | H38: Shower, per head (no Bathtub) | I38: =DemandEstimate!F13 -> 0 | J38: =" " ->  | K38: =" " -> 
G39: =DemandEstimate!H14 -> 3 | H39: =DemandEstimate!E14 -> Water Closet, 1.28 GPF Gravity Tank | I39: =DemandEstimate!F14 -> 0 | J39: =" " ->  | K39: =" " -> 
G40: =DemandEstimate!H15 -> 1.3 | H40: Dishwasher | I40: =DemandEstimate!F15 -> 0 | J40: =" " ->  | K40: =" " -> 
G41: =DemandEstimate!H16 -> 2.2 | H41: Faucet, Kitchen Sink | I41: =DemandEstimate!F16 -> 0 | J41: =" " ->  | K41: =" " -> 
G42: =DemandEstimate!H17 -> 3.5 | H42: Clothes Washer | I42: =DemandEstimate!F17 -> 0 | J42: =" " ->  | K42: =" " -> 
G43: =DemandEstimate!H18 -> 2 | H43: Faucet, Laundry | I43: =DemandEstimate!F18 -> 0 | J43: =" " ->  | K43: =" " -> 
G44: =DemandEstimate!H19 -> 1.5 | H44: Faucet, Bar Sink | I44: =DemandEstimate!F19 -> 0 | J44: =" " ->  | K44: =" " -> 
G45: =DemandEstimate!H20 -> 0 | H45: =DemandEstimate!E20 -> Fixture 1 | I45: =DemandEstimate!F20 -> 0 | J45: =" " ->  | K45: =" " -> 
G46: =DemandEstimate!H21 -> 0 | H46: =DemandEstimate!E21 -> Fixture 2 | I46: =DemandEstimate!F21 -> 0 | J46: =" " ->  | K46: =" " -> 
G47: =DemandEstimate!H22 -> 0 | H47: =DemandEstimate!E22 -> Fixture 3 | I47: =DemandEstimate!F22 -> 0

Sheet UPC_IPC_ASHRAE (hidden)
A1: Conversion of Fixture Units to Equivalent gpm | F1: Conversion of Fixture Units to Equivalent gpm | G1: UPC | H1: UPC | L1: Conversion of Fixture Units to Equivalent gpm | M1: ASHARE | O1: ASHARE | X1: Conversion of Fixture Units to Equivalent gpm
A2: FU | B2: GPM | E2: Demand (Load) Fixture Units | F2: gpm | G2: Liters | H2: FU | I2: GPM | L2: Demand (Load) Fixture Units | M2: Demand (Load), gpm System With Flush Tanks | O2: FU | P2: GPM | X2: Demand (Load) Fixture Units | Y2: Demand (Load), gpm System With Flush Tanks
A3: 1 | B3: 1 | E3: 1 | F3: 0 | G3: 0 | H3: 1 | I3: =F3 -> 0 | L3: 1 | M3: 5 | N3: 7.5 | O3: 1 | P3: =SUM($M$3+(($M$4-$M$3)*((O3-$L$3)/($L$4-$L$3)))) -> 5 | X3: 6 | Y3: 5
A4: 2 | B4: 2 | E4: 2 | F4: 1.001321004 | G4: 3.79 | H4: 2 | I4: 1.001321004 | L4: 25 | M4: 13 | O4: 2 | P4: =SUM($M$3+(($M$4-$M$3)*((O4-$L$3)/($L$4-$L$3)))) -> 5.333333333 | X4: =X3+1 -> 7 | Y4: =SUM(Y3+((Y5-Y3)*((X4-X3)/(X5-X3)))) -> 5.75
A5: 3 | B5: 3 | E5: 3 | F5: 3.011889036 | G5: 11.4 | H5: 3 | I5: 3.011889036 | L5: 50 | M5: 18 | O5: 3 | P5: 5.666666667 | X5: 8 | Y5: 6.5
A6: 4 | B6: 4 | E6: 4 | F6: 3.989431968 | G6: 15.1 | H6: 4 | I6: 3.989431968 | L6: 75 | M6: 22.5 | O6: 4 | P6: 6 | X6: 9 | Y6: =SUM(Y5+((Y7-Y5)*((X6-X5)/(X7-X5)))) -> 7.25
A7: 5 | B7: 5 | E7: 5 | F7: 4.99339498 | G7: 18.9 | H7: 5 | I7: 4.99339498 | L7: 100 | M7: 26 | O7: 5 | P7: 6.333333333 | X7: 10 | Y7: 8
A8: 6 | B8: 6 | E8: 6 | F8: 5.997357992 | G8: 22.7 | H8: 6 | I8: 5.997357992 | L8: 125 | M8: 29 | O8: 6 | P8: 6.666666667 | X8: 11 | Y8: =SUM(Y7+((Y9-Y7)*((X8-X7)/(X9-X7)))) -> 8.5
A9: =A8+1 -> 7 | B9: 6.25 | E9: 8 | F9: 6.499339498 | G9: 24.6 | H9: =H8+1 -> 7 | I9: =SUM($F$8+(($F$9-$F$8)*((H9-$E$8)/($E$9-$E$8)))) -> 6.248348745 | L9: 150 | M9: 31 | O9: 7 | P9: 7 | X9: 12 | Y9: 9
A10: 8 | B10: 6.5 | E10: 10 | F10: 8.005284016 | G10: 30.3 | H10: 8 | I10: =SUM($F$8+(($F$9-$F$8)*((H10-$E$8)/($E$9-$E$8)))) -> 6.499339498 | L10: 175 | M10: 33.5 | O10: 8 | P10: 7.333333333 | X10: 13 | Y10: =SUM(Y9+((Y11-Y9)*((X10-X9)/(X11-X9)))) -> 10
A11: 9 | B11: 7.25 | E11: 12 | F11: 9.009247028 | G11: 34.1 | H11: 9 | I11: =SUM($F$9+(($F$10-$F$9)*((H11-$E$9)/($E$10-$E$9)))) -> 7.252311757 | L11: 200 | M11: 35 | O11: 9 | P11: 7.666666667 | X11: 14 | Y11: 11
A12: 10 | B12: 8 | E12: 14 | F12: 10.99075297 | G12: 41.6 | H12: 10 | I12: =SUM($F$9+(($F$10-$F$9)*((H12-$E$9)/($E$10-$E$9)))) -> 8.005284016 | L12: 225 | M12: 37 | O12: 10 | P12: 8 | X12: 15 | Y12: =SUM(Y11+((Y13-Y11)*((X12-X11)/(X13-X11)))) -> 11.5
A13: 11 | B13: 8.5 | E13: 16 | F13: 11.99471598 | G13: 45.4 | H13: 11 | I13: =SUM($F$10+(($F$11-$F$10)*((H13-$E$10)/($E$11-$E$10)))) -> 8.507265522 | L13: 250 | M13: 39 | O13: 11 | P13: 8.333333333 | X13: 16 | Y13: 12
A14: 12 | B14: 9 | E14: 18 | F14: 12.998679 | G14: 49.2 | H14: 12 | I14: =SUM($F$10+(($F$11-$F$10)*((H14-$E$10)/($E$11-$E$10)))) -> 9.009247028 | L14: 275 | M14: 41 | O14: 12 | P14: 8.666666667 | X14: 17 | Y14: =SUM(Y13+((Y15-Y13)*((X14-X13)/(X15-X13)))) -> 12.5
A15: 13 | B15: 10 | E15: 20 | F15: 14.00264201 | G15: 53 | H15: 13 | I15: =SUM($F$11+(($F$12-$F$11)*((H15-$E$11)/($E$12-$E$11)))) -> 10 | L15: 300 | M15: 42.5 | O15: 13 | P15: 9 | X15: 18 | Y15: 13
A16: 14 | B16: 11 | E16: 25 | F16: 16.98811096 | G16: 64.3 | H16: 14 | I16: =SUM($F$11+(($F$12-$F$11)*((H16-$E$11)/($E$12-$E$11)))) -> 10.99075297 | L16: 325 | M16: 44 | O16: 14 | P16: 9.333333333 | X16: 19 | Y16: =SUM(Y15+((Y17-Y15)*((X16-X15)/(X17-X15)))) -> 13.5
A17: 15 | B17: 11.5 | E17: 30 | F17: 20 | G17: 75.7 | H17: 15 | I17: =SUM($F$12+(($F$13-$F$12)*((H17-$E$12)/($E$13-$E$12)))) -> 11.49273448 | L17: 350 | M17: 45 | O17: 15 | P17: 9.666666667 | X17: 20 | Y17: 14
A18: 16 | B18: 12 | E18: 35 | F18: 23.01188904 | G18: 87.1 | H18: 16 | I18: =SUM($F$12+(($F$13-$F$12)*((H18-$E$12)/($E$13-$E$12)))) -> 11.99471598 | L18: 375 | M18: 46 | O18: 16 | P18: 10 | X18: 21 | Y18: =SUM(Y$17+((Y$22-Y$17)*((X18-X$17)/(X$22-X$17)))) -> 14.6
A19: 17 | B19: 12.5 | E19: 40 | F19: 24.99339498 | G19: 94.6 | H19: 17 | I19: =SUM($F$13+(($F$14-$F$13)*((H19-$E$13)/($E$14-$E$13)))) -> 12.49669749 | L19: 400 | M19: 47 | O19: 17 | P19: 10.33333333 | X19: 22 | Y19: =SUM(Y$17+((Y$22-Y$17)*((X19-X$17)/(X$22-X$17)))) -> 15.2
A20: 18 | B20: 13 | E20: 45 | F20: 26.94848085 | G20: 102 | H20: 18 | I20: =SUM($F$13+(($F$14-$F$13)*((H20-$E$13)/($E$14-$E$13)))) -> 12.998679 | O20: 18 | P20: 10.66666667 | X20: 23 | Y20: =SUM(Y$17+((Y$22-Y$17)*((X20-X$17)/(X$22-X$17)))) -> 15.8
A21: 19 | B21: 13.5 | E21: 50 | F21: 29.06208719 | G21: 110 | H21: 19 | I21: =SUM($F$14+(($F$15-$F$14)*((H21-$E$14)/($E$15-$E$14)))) -> 13.5006605 | O21: 19 | P21: 11 | X21: 24 | Y21: =SUM(Y$17+((Y$22-Y$17)*((X21-X$17)/(X$22-X$17)))) -> 16.4
A22: 20 | B22: 14 | E22: 60 | F22: 31.9682959 | G22: 121 | H22: 20 | I22: =SUM($F$14+(($F$15-$F$14)*((H22-$E$14)/($E$15-$E$14)))) -> 14.00264201 | O22: 20 | P22: 11.33333333 | X22: 25 | Y22: 17
A23: 21 | B23: 14.6 | E23: 70 | F23: 34.87450462 | G23: 132 | H23: 21 | I23: =SUM($F$15+(($F$16-$F$15)*((H23-$E$15)/($E$16-$E$15)))) -> 14.5997358 | O23: 21 | P23: 11.66666667 | X23: 26 | Y23: =SUM(Y$22+((Y$27-Y$22)*((X23-X$22)/(X$27-X$22)))) -> 17.6
A24: 22 | B24: 15.2 | E24: 80 | F24: 38.04491413 | G24: 144 | H24: 22 | I24: =SUM($F$15+(($F$16-$F$15)*((H24-$E$15)/($E$16-$E$15)))) -> 15.19682959 | O24: 22 | P24: 12 | X24: 27 | Y24: =SUM(Y$22+((Y$27-Y$22)*((X24-X$22)/(X$27-X$22)))) -> 18.2
A25: 23 | B25: 15.8 | E25: 90 | F25: 40.95112285 | G25: 155 | H25: 23 | I25: =SUM($F$15+(($F$16-$F$15)*((H25-$E$15)/($E$16-$E$15)))) -> 15.79392338 | O25: 23 | P25: 12.33333333 | X25: 28 | Y25: =SUM(Y$22+((Y$27-Y$22)*((X25-X$22)/(X$27-X$22)))) -> 18.8
A26: 24 | B26: 16.4 | E26: 100 | F26: 44.12153236 | G26: 167 | H26: 24 | I26: =SUM($F$15+(($F$16-$F$15)*((H26-$E$15)/($E$16-$E$15)))) -> 16.39101717 | O26: 24 | P26: 12.66666667 | X26: 29 | Y26: =SUM(Y$22+((Y$27-Y$22)*((X26-X$22)/(X$27-X$22)))) -> 19.4
A27: 25 | B27: 17 | E27: 120 | F27: 48.08454425 | G27: 182 | H27: 25 | I27: =SUM($F$15+(($F$16-$F$15)*((H27-$E$15)/($E$16-$E$15)))) -> 16.98811096 | O27: 25 | P27: 13 | X27: 30 | Y27: 20
A28: 26 | B28: 17.6 | E28: 140 | F28: 53.10435931 | G28: 201 | H28: 26 | I28: =SUM($F$16+(($F$17-$F$16)*((H28-$E$16)/($E$17-$E$16)))) -> 17.59048877 | O28: 26 | P28: =SUM($M$4+(($M$5-$M$4)*((O28-$L$4)/($L$5-$L$4)))) -> 13.2 | X28: 31 | Y28: =SUM(Y$27+((Y$32-Y$27)*((X28-X$27)/(X$32-X$27)))) -> 20.6
A29: 27 | B29: 18.2 | E29: 160 | F29: 57.0673712 | G29: 216 | H29: 27 | I29: =SUM($F$16+(($F$17-$F$16)*((H29-$E$16)/($E$17-$E$16)))) -> 18.19286658 | O29: 27 | P29: =SUM($M$4+(($M$5-$M$4)*((O29-$L$4)/($L$5-$L$4)))) -> 13.4 | X29: 32 | Y29: =SUM(Y$27+((Y$32-Y$27)*((X29-X$27)/(X$32-X$27)))) -> 21.2
A30: 28 | B30: 18.8 | E30: 180 | F30: 61.03038309 | G30: 231 | H30: 28 | I30: =SUM($F$16+(($F$17-$F$16)*((H30-$E$16)/($E$17-$E$16)))) -> 18.79524439 | O30: 28 | P30: 13.6 | X30: 33 | Y30: =SUM(Y$27+((Y$32-Y$27)*((X30-X$27)/(X$32-X$27)))) -> 21.8
A31: 29 | B31: 19.4 | E31: 200 | F31: 64.99339498 | G31: 246 | H31: 29 | I31: =SUM($F$16+(($F$17-$F$16)*((H31-$E$16)/($E$17-$E$16)))) -> 19.39762219 | O31: 29 | P31: 13.8 | X31: 34 | Y31: =SUM(Y$27+((Y$32-Y$27)*((X31-X$27)/(X$32-X$27)))) -> 22.4
A32: 30 | B32: 20 | E32: 225 | F32: 70.01321004 | G32: 265 | H32: 30 | I32: =SUM($F$16+(($F$17-$F$16)*((H32-$E$16)/($E$17-$E$16)))) -> 20 | O32: 30 | P32: 14 | X32: 35 | Y32: 23
A33: 31 | B33: 20.6 | E33: 250 | F33: 75.0330251 | G33: 284 | H33: 31 | I33: =SUM($F$17+(($F$18-$F$17)*((H33-$E$17)/($E$18-$E$17)))) -> 20.60237781 | O33: 31 | P33: 14.2 | X33: 36 | Y33: =SUM(Y$32+((Y$37-Y$32)*((X33-X$32)/(X$37-X$32)))) -> 23.4
A34: 32 | B34: 21.2 | E34: 275 | F34: 80.05284016 | G34: 303 | H34: 32 | I34: =SUM($F$17+(($F$18-$F$17)*((H34-$E$17)/($E$18-$E$17)))) -> 21.20475561 | O34: 32 | P34: 14.4 | X34: 37 | Y34: =SUM(Y$32+((Y$37-Y$32)*((X34-X$32)/(X$37-X$32)))) -> 23.8
A35: 33 | B35: 21.8 | E35: 300 | F35: 85.07265522 | G35: 322 | H35: 33 | I35: =SUM($F$17+(($F$18-$F$17)*((H35-$E$17)/($E$18-$E$17)))) -> 21.80713342 | O35: 33 | P35: 14.6 | X35: 38 | Y35: =SUM(Y$32+((Y$37-Y$32)*((X35-X$32)/(X$37-X$32)))) -> 24.2
A36: 34 | B36: 22.4 | E36: 400 | F36: 104.8877147 | G36: 397 | H36: 34 | I36: =SUM($F$17+(($F$18-$F$17)*((H36-$E$17)/($E$18-$E$17)))) -> 22.40951123 | O36: 34 | P36: 14.8 | X36: 39 | Y36: =SUM(Y$32+((Y$37-Y$32)*((X36-X$32)/(X$37-X$32)))) -> 24.6
A37: 35 | B37: 23 | E37: 500 | F37: 124.9669749 | G37: 473 | H37: 35 | I37: =SUM($F$17+(($F$18-$F$17)*((H37-$E$17)/($E$18-$E$17)))) -> 23.01188904 | O37: 35 | P37: 15 | X37: 40 | Y37: 25
A38: 36 | B38: 23.4 | E38: 750 | F38: 169.8811096 | G38: 643 | H38: 36 | I38: =SUM($F$18+(($F$19-$F$18)*((H38-$E$18)/($E$19-$E$18)))) -> 23.40819022 | O38: 36 | P38: 15.2 | X38: 41 | Y38: =SUM(Y$37+((Y$42-Y$37)*((X38-X$37)/(X$42-X$37)))) -> 25.4
A39: 37 | B39: 23.8 | E39: 1000 | F39: 207.9260238 | G39: 787 | H39: 37 | I39: =SUM($F$18+(($F$19-$F$18)*((H39-$E$18)/($E$19-$E$18)))) -> 23.80449141 | O39: 37 | P39: 15.4 | X39: 42 | Y39: =SUM(Y$37+((Y$42-Y$37)*((X39-X$37)/(X$42-X$37)))) -> 25.8
A40: 38 | B40: 24.2 | E40: 1250 | F40: 239.8943197 | G40: 908 | H40: 38 | I40: =SUM($F$18+(($F$19-$F$18)*((H40-$E$18)/($E$19-$E$18)))) -> 24.2007926 | O40: 38 | P40: 15.6 | X40: 43 | Y40: =SUM(Y$37+((Y$42-Y$37)*((X40-X$37)/(X$42-X$37)))) -> 26.2
A41: 39 | B41: 24.6 | E41: 1500 | F41: 267.1070013 | G41: 1011 | H41: 39 | I41: =SUM($F$18+(($F$19-$F$18)*((H41-$E$18)/($E$19-$E$18)))) -> 24.59709379 | O41: 39 | P41: 15.8 | X41: 44 | Y41: =SUM(Y$37+((Y$42-Y$37)*((X41-X$37)/(X$42-X$37)))) -> 26.6
A42: 40 | B42: 25 | E42: 1750 | F42: 294.0554822 | G42: 1113 | H42: 40 | I42: =SUM($F$18+(($F$19-$F$18)*((H42-$E$18)/($E$19-$E$18)))) -> 24.99339498 | O42: 40 | P42: 16 | X42: 45 | Y42: 27
A43: 41 | B43: 25.4 | E43: 2000 | F43: 321.003963 | G43: 1215 | H43: 41 | I43: =SUM($F$19+(($F$20-$F$19)*((H43-$E$19)/($E$20-$E$19)))) -> 25.38441215 | O43: 41 | P43: 16.2 | X43: 46 | Y43: =SUM(Y$42+((Y$47-Y$42)*((X43-X$42)/(X$47-X$42)))) -> 27.4
A44: 42 | B44: 25.8 | E44: 2250 | F44: 347.9524439 | G44: 1317 | H44: 42 | I44: =SUM($F$19+(($F$20-$F$19)*((H44-$E$19)/($E$20-$E$19)))) -> 25.77542933 | O44: 42 | P44: 16.4 | X44: 47 | Y44: =SUM(Y$42+((Y$47-Y$42)*((X44-X$42)/(X$47-X$42)))) -> 27.8
A45: 43 | B45: 26.2 | E45: 2500 | F45: 374.9009247 | G45: 1419 | H45: 43 | I45: =SUM($F$19+(($F$20-$F$19)*((H45-$E$19)/($E$20-$E$19)))) -> 26.1664465 | O45: 43 | P45: 16.6 | X45: 48 | Y45: =SUM(Y$42+((Y$47-Y$42)*((X45-X$42)/(X$47-X$42)))) -> 28.2
A46: 44 | B46: 26.6 | E46: 2750 | F46: 402.1136063 | G46: 1522 | H46: 44 | I46: =SUM($F$19+(($F$20-$F$19)*((H46-$E$19)/($E$20-$E$19)))) -> 26.55746367 | O46: 44 | P46: 16.8 | X46: 49 | Y46: =SUM(Y$42+((Y$47-Y$42)*((X46-X$42)/(X$47-X$42)))) -> 28.6
A47: 45 | B47: 27 | E47: 3000 | F47: 431.9682959 | G47: 1635 | H47: 45 | I47: =SUM($F$19+(($F$20-$F$19)*((H47-$E$19)/($E$20-$E$19)))) -> 26.94848085 | O47: 45 | P47: 17 | X47: 50 | Y47: 29
A48: 46 | B48: 27.4 | E48: 4000 | F48: 524.9669749 | G48: 1987 | H48: 46 | I48: =SUM($F$20+(($F$21-$F$20)*((H48-$E$20)/($E$21-$E$20)))) -> 27.37120211 | O48: 46 | P48: 17.2 | X48: 51 | Y48: =SUM(Y$47+((Y$57-Y$47)*((X48-X$47)/(X$57-X$47)))) -> 29.3
A49: 47 | B49: 27.8 | E49: 5000 | F49: 593.1307794 | G49: 2245 | H49: 47 | I49: =SUM($F$20+(($F$21-$F$20)*((H49-$E$20)/($E$21-$E$20)))) -> 27.79392338 | O49: 47 | P49: 17.4 | X49: 52 | Y49: 29.6
A50: 48 | B50: 28.2 | E50: 6000 | F50: 643.0647292 | G50: 2434 | H50: 48 | I50: =SUM($F$20+(($F$21-$F$20)*((H50-$E$20)/($E$21-$E$20)))) -> 28.21664465 | O50: 48 | P50: 17.6 | X50: 53 | Y50: 29.9
A51: 49 | B51: 28.6 | E51: 7000 | F51: 685.0726552 | G51: 2593 | H51: 49 | I51: =SUM($F$20+(($F$21-$F$20)*((H51-$E$20)/($E$21-$E$20)))) -> 28.63936592 | O51: 49 | P51: 17.8 | X51: 54 | Y51: 30.2
A52: 50 | B52: 29 | E52: 8000 | F52: 718.0977543 | G52: 2718 | H52: 50 | I52: =SUM($F$20+(($F$21-$F$20)*((H52-$E$20)/($E$21-$E$20)))) -> 29.06208719 | O52: 50 | P52: 18 | X52: 55 | Y52: 30.5
A53: 51 | B53: 29.3 | E53: 9000 | F53: 745.0462351 | G53: 2820 | H53: 51 | I53: =SUM($F$21+(($F$22-$F$21)*((H53-$E$21)/($E$22-$E$21)))) -> 29.35270806 | O53: 51 | P53: =SUM($M$5+(($M$6-$M$5)*((O53-$L$5)/($L$6-$L$5)))) -> 18.18 | X53: 56 | Y53: 30.8
A54: 52 | B54: 29.6 | E54: 10000 | F54: 769.0885073 | G54: 2911 | H54: 52 | I54: =SUM($F$21+(($F$22-$F$21)*((H54-$E$21)/($E$22-$E$21)))) -> 29.64332893 | O54: 52 | P54: =SUM($M$5+(($M$6-$M$5)*((O54-$L$5)/($L$6-$L$5)))) -> 18.36 | X54: 57 | Y54: 31.1
A55: 53 | B55: 29.9 | H55: 53 | I55: 29.9339498 | O55: 53 | P55: 18.54 | X55: 58 | Y55: 31.4
A56: 54 | B56: 30.2 | H56: 54 | I56: 30.22457067 | O56: 54 | P56: 18.72 | X56: 59 | Y56: 31.7
A57: 55 | B57: 30.5 | H57: 55 | I57: 30.51519155 | O57: 55 | P57: 18.9 | X57: 60 | Y57: 32
A58: 56 | B58: 30.8 | H58: 56 | I58: 30.80581242 | O58: 56 | P58: 19.08 | X58: 61 | Y58: =SUM(Y$57+((Y$67-Y$57)*((X58-X$57)/(X$67-X$57)))) -> 32.3
A59: 57 | B59: 31.1 | H59: 57 | I59: 31.09643329 | O59: 57 | P59: 19.26 | X59: 62 | Y59: 32.6
A60: 58 | B60: 31.4 | H60: 58 | I60: 31.38705416 | O60: 58 | P60: 19.44 | X60: 63 | Y60: 32.9
A61: 59 | B61: 31.7 | H61: 59 | I61: 31.67767503 | O61: 59 | P61: 19.62 | X61: 64 | Y61: 33.2
A62: 60 | B62: 32 | H62: 60 | I62: 31.9682959 | O62: 60 | P62: 19.8 | X62: 65 | Y62: 33.5
A63: 61 | B63: 32.3 | H63: 61 | I63: =SUM($F$22+(($F$23-$F$22)*((H63-$E$22)/($E$23-$E$22)))) -> 32.25891678 | O63: 61 | P63: 19.98 | X63: 66 | Y63: 33.8
A64: 62 | B64: 32.6 | H64: 62 | I64: =SUM($F$22+(($F$23-$F$22)*((H64-$E$22)/($E$23-$E$22)))) -> 32.54953765 | O64: 62 | P64: 20.16 | X64: 67 | Y64: 34.1
A65: 63 | B65: 32.9 | H65: 63 | I65: 32.84015852 | O65: 63 | P65: 20.34 | X65: 68 | Y65: 34.4
A66: 64 | B66: 33.2 | H66: 64 | I66: 33.13077939 | O66: 64 | P66: 20.52 | X66: 69 | Y66: 34.7
A67: 65 | B67: 33.5 | H67: 65 | I67: 33.42140026 | O67: 65 | P67: 20.7 | X67: 70 | Y67: 35
A68: 66 | B68: 33.8 | H68: 66 | I68: 33.71202114 | O68: 66 | P68: 20.88 | X68: =X67+1 -> 71 | Y68: =SUM(Y$67+((Y$77-Y$67)*((X68-X$67)/(X$77-X$67)))) -> 35.3
A69: 67 | B69: 34.1 | H69: 67 | I69: 34.00264201 | O69: 67 | P69: 21.06 | X69: 72 | Y69: 35.6
A70: 68 | B70: 34.4 | H70: 68 | I70: 34.29326288 | O70: 68 | P70: 21.24 | X70: 73 | Y70: 35.9
A71: 69 | B71: 34.7 | H71: 69 | I71: 34.58388375 | O71: 69 | P71: 21.42 | X71: 74 | Y71: 36.2
A72: 70 | B72: 35 | H72: 70 | I72: 34.87450462 | O72: 70 | P72: 21.6 | X72: 75 | Y72: 36.5
A73: =A72+1 -> 71 | B73: 35.3 | H73: =H72+1 -> 71 | I73: =SUM($F$23+(($F$24-$F$23)*((H73-$E$23)/($E$24-$E$23)))) -> 35.19154557 | O73: 71 | P73: 21.78 | X73: 76 | Y73: 36.8
A74: 72 | B74: 35.6 | H74: 72 | I74: =SUM($F$23+(($F$24-$F$23)*((H74-$E$23)/($E$24-$E$23)))) -> 35.50858653 | O74: 72 | P74: 21.96 | X74: 77 | Y74: 37.1
A75: 73 | B75: 35.9 | H75: 73 | I75: 35.82562748 | O75: 73 | P75: 22.14 | X75: 78 | Y75: 37.4
A76: 74 | B76: 36.2 | H76: 74 | I76: 36.14266843 | O76: 74 | P76: 22.32 | X76: 79 | Y76: 37.7
A77: 75 | B77: 36.5 | H77: 75 | I77: 36.45970938 | O77: 75 | P77: 22.5 | X77: 80 | Y77: 38
A78: 76 | B78: 36.8 | H78: 76 | I78: 36.77675033 | O78: 76 | P78: =SUM($M$6+(($M$7-$M$6)*((O78-$L$6)/($L$7-$L$6)))) -> 22.64 | X78: 81 | Y78: =SUM(Y$77+((Y$87-Y$77)*((X78-X$77)/(X$87-X$77)))) -> 38.3
A79: 77 | B79: 37.1 | H79: 77 | I79: 37.09379128 | O79: 77 | P79: =SUM($M$6+(($M$7-$M$6)*((O79-$L$6)/($L$7-$L$6)))) -> 22.78 | X79: 82 | Y79: 38.6
A80: 78 | B80: 37.4 | H80: 78 | I80: 37.41083223 | O80: 78 | P80: 22.92 | X80: 83 | Y80: 38.9
A81: 79 | B81: 37.7 | H81: 79 | I81: 37.72787318 | O81: 79 | P81: 23.06 | X81: 84 | Y81: 39.2
A82: 80 | B82: 38 | H82: 80 | I82: 38.04491413 | O82: 80 | P82: 23.2 | X82: 85 | Y82: 39.5
A83: 81 | B83: 38.3 | H83: 81 | I83: =SUM($F$24+(($F$25-$F$24)*((H83-$E$24)/($E$25-$E$24)))) -> 38.33553501 | O83: 81 | P83: 23.34 | X83: 86 | Y83: 39.8
A84: 82 | B84: 38.6 | H84: 82 | I84: =SUM($F$24+(($F$25-$F$24)*((H84-$E$24)/($E$25-$E$24)))) -> 38.62615588 | O84: 82 | P84: 23.48 | X84: 87 | Y84: 40.1
A85: 83 | B85: 38.9 | H85: 83 | I85: 38.91677675 | O85: 83 | P85: 23.62 | X85: 88 | Y85: 40.4
A86: 84 | B86: 39.2 | H86: 84 | I86: 39.20739762 | O86: 84 | P86: 23.76 | X86: 89 | Y86: 40.7
A87: 85 | B87: 39.5 | H87: 85 | I87: 39.49801849 | O87: 85 | P87: 23.9 | X87: 90 | Y87: 41
A88: 86 | B88: 39.8 | H88: 86 | I88: 39.78863937 | O88: 86 | P88: 24.04 | X88: 91 | Y88: =SUM(Y$87+((Y$97-Y$87)*((X88-X$87)/(X$97-X$87)))) -> 41.3
A89: 87 | B89: 40.1 | H89: 87 | I89: 40.07926024 | O89: 87 | P89: 24.18 | X89: 92 | Y89: 41.6
A90: 88 | B90: 40.4 | H90: 88 | I90: 40.36988111 | O90: 88 | P90: 24.32 | X90: 93 | Y90: 41.9
A91: 89 | B91: 40.7 | H91: 89 | I91: 40.66050198 | O91: 89 | P91: 24.46 | X91: 94 | Y91: 42.2
A92: 90 | B92: 41 | H92: 90 | I92: 40.95112285 | O92: 90 | P92: 24.6 | X92: 95 | Y92: 42.5
A93: 91 | B93: 41.3 | H93: 91 | I93: =SUM($F$25+(($F$26-$F$25)*((H93-$E$25)/($E$26-$E$25)))) -> 41.2681638 | O93: 91 | P93: 24.74 | X93: 96 | Y93: 42.8
A94: 92 | B94: 41.6 | H94: 92 | I94: =SUM($F$25+(($F$26-$F$25)*((H94-$E$25)/($E$26-$E$25)))) -> 41.58520476 | O94: 92 | P94: 24.88 | X94: 97 | Y94: 43.1
A95: 93 | B95: 41.9 | H95: 93 | I95: 41.90224571 | O95: 93 | P95: 25.02 | X95: 98 | Y95: 43.4
A96: 94 | B96: 42.2 | H96: 94 | I96: 42.21928666 | O96: 94 | P96: 25.16 | X96: 99 | Y96: 43.7
A97: 95 | B97: 42.5 | H97: 95 | I97: 42.53632761 | O97: 95 | P97: 25.3 | X97: 100 | Y97: 44
A98: 96 | B98: 42.8 | H98: 96 | I98: 42.85336856 | O98: 96 | P98: 25.44 | X98: 101 | Y98: =SUM(Y$97+((Y$117-Y$97)*((X98-X$97)/(X$117-X$97)))) -> 44.2
A99: 97 | B99: 43.1 | H99: 97 | I99: 43.17040951 | O99: 97 | P99: 25.58 | X99: 102 | Y99: 44.4
A100: 98 | B100: 43.4 | H100: 98 | I100: 43.48745046 | O100: 98 | P100: 25.72 | X100: 103 | Y100: 44.6
A101: 99 | B101: 43.7 | H101: 99 | I101: 43.80449141 | O101: 99 | P101: 25.86 | X101: 104 | Y101: 44.8
A102: 100 | B102: 44 | H102: 100 | I102: 44.12153236 | O102: 100 | P102: 26 | X102: 105 | Y102: 45
A103: 101 | B103: 44.2 | H103: 101 | I103: =SUM($F$26+(($F$27-$F$26)*((H103-$E$26)/($E$27-$E$26)))) -> 44.31968296 | O103: 101 | P103: =SUM($M$7+(($M$8-$M$7)*((O103-$L$7)/($L$8-$L$7)))) -> 26.12 | X103: 106 | Y103: 45.2
A104: 102 | B104: 44.4 | H104: 102 | I104: =SUM($F$26+(($F$27-$F$26)*((H104-$E$26)/($E$27-$E$26)))) -> 44.51783355 | O104: 102 | P104: =SUM($M$7+(($M$8-$M$7)*((O104-$L$7)/($L$8-$L$7)))) -> 26.24 | X104: 107 | Y104: 45.4
A105: 103 | B105: 44.6 | H105: 103 | I105: 44.71598415 | O105: 103 | P105: 26.36 | X105: 108 | Y105: 45.6
A106: 104 | B106: 44.8 | H106: 104 | I106: 44.91413474 | O106: 104 | P106: 26.48 | X106: 109 | Y106: 45.8
A107: 105 | B107: 45 | H107: 105 | I107: 45.11228534 | O107: 105 | P107: 26.6 | X107: 110 | Y107: 46
A108: 106 | B108: 45.2 | H108: 106 | I108: 45.31043593 | O108: 106 | P108: 26.72 | X108: 111 | Y108: 46.2
A109: 107 | B109: 45.4 | H109: 107 | I109: 45.50858653 | O109: 107 | P109: 26.84 | X109: 112 | Y109: 46.4
A110: 108 | B110: 45.6 | H110: 108 | I110: 45.70673712 | O110: 108 | P110: 26.96 | X110: 113 | Y110: 46.6
A111: 109 | B111: 45.8 | H111: 109 | I111: 45.90488771 | O111: 109 | P111: 27.08 | X111: 114 | Y111: 46.8
A112: 110 | B112: 46 | H112: 110 | I112: 46.10303831 | O112: 110 | P112: 27.2 | X112: 115 | Y112: 47
A113: 111 | B113: 46.2 | H113: 111 | I113: 46.3011889 | O113: 111 | P113: 27.32 | X113: 116 | Y113: 47.2
A114: 112 | B114: 46.4 | H114: 112 | I114: 46.4993395 | O114: 112 | P114: 27.44 | X114: 117 | Y114: 47.4
A115: 113 | B115: 46.6 | H115: 113 | I115: 46.69749009 | O115: 113 | P115: 27.56 | X115: 118 | Y115: 47.6
A116: 114 | B116: 46.8 | H116: 114 | I116: 46.89564069 | O116: 114 | P116: 27.68 | X116: 119 | Y116: 47.8
A117: 115 | B117: 47 | H117: 115 | I117: 47.09379128 | O117: 115 | P117: 27.8 | X117: 120 | Y117: 48
A118: 116 | B118: 47.2 | H118: 116 | I118: 47.29194188 | O118: 116 | P118: 27.92 | X118: 121 | Y118: =SUM(Y$117+((Y$137-Y$117)*((X118-X$117)/(X$137-X$117)))) -> 48.25
A119: 117 | B119: 47.4 | H119: 117 | I119: 47.49009247 | O119: 117 | P119: 28.04 | X119: 122 | Y119: 48.5
A120: 118 | B120: 47.6 | H120: 118 | I120: 47.68824306 | O120: 118 | P120: 28.16 | X120: 123 | Y120: 48.75
A121: 119 | B121: 47.8 | H121: 119 | I121: 47.88639366 | O121: 119 | P121: 28.28 | X121: 124 | Y121: 49
A122: 120 | B122: 48 | H122: 120 | I122: 48.08454425 | O122: 120 | P122: 28.4 | X122: 125 | Y122: 49.25
A123: 121 | B123: 48.25 | H123: 121 | I123: =SUM($F$27+(($F$28-$F$27)*((H123-$E$27)/($E$28-$E$27)))) -> 48.33553501 | O123: 121 | P123: 28.52 | X123: 126 | Y123: 49.5
A124: 122 | B124: 48.5 | H124: 122 | I124: =SUM($F$27+(($F$28-$F$27)*((H124-$E$27)/($E$28-$E$27)))) -> 48.58652576 | O124: 122 | P124: 28.64 | X124: 127 | Y124: 49.75
A125: 123 | B125: 48.75 | H125: 123 | I125: 48.83751651 | O125: 123 | P125: 28.76 | X125: 128 | Y125: 50
A126: 124 | B126: 49 | H126: 124 | I126: 49.08850727 | O126: 124 | P126: 28.88 | X126: 129 | Y126: 50.25
A127: 125 | B127: 49.25 | H127: 125 | I127: 49.33949802 | O127: 125 | P127: 29 | X127: 130 | Y127: 50.5
A128: 126 | B128: 49.5 | H128: 126 | I128: 49.59048877 | O128: 126 | P128: =SUM($M$8+(($M$9-$M$8)*((O128-$L$8)/($L$9-$L$8)))) -> 29.08 | X128: 131 | Y128: 50.75
A129: 127 | B129: 49.75 | H129: 127 | I129: 49.84147952 | O129: 127 | P129: =SUM($M$8+(($M$9-$M$8)*((O129-$L$8)/($L$9-$L$8)))) -> 29.16 | X129: 132 | Y129: 51
A130: 128 | B130: 50 | H130: 128 | I130: 50.09247028 | O130: 128 | P130: 29.24 | X130: 133 | Y130: 51.25
A131: 129 | B131: 50.25 | H131: 129 | I131: 50.34346103 | O131: 129 | P131: 29.32 | X131: 134 | Y131: 51.5
A132: 130 | B132: 50.5 | H132: 130 | I132: 50.59445178 | O132: 130 | P132: 29.4 | X132: =X131+1 -> 135 | Y132: 51.75
A133: 131 | B133: 50.75 | H133: 131 | I133: 50.84544254 | O133: 131 | P133: 29.48 | X133: 136 | Y133: 52
A134: 132 | B134: 51 | H134: 132 | I134: 51.09643329 | O134: 132 | P134: 29.56 | X134: 137 | Y134: 52.25
A135: 133 | B135: 51.25 | H135: 133 | I135: 51.34742404 | O135: 133 | P135: 29.64 | X135: 138 | Y135: 52.5
A136: 134 | B136: 51.5 | H136: 134 | I136: 51.5984148 | O136: 134 | P136: 29.72 | X136: 139 | Y136: 52.75
A137: =A136+1 -> 135 | B137: 51.75 | H137: =H136+1 -> 135 | I137: 51.84940555 | O137: 135 | P137: 29.8 | X137: 140 | Y137: 53
A138: 136 | B138: 52 | H138: 136 | I138: 52.1003963 | O138: 136 | P138: 29.88 | X138: 141 | Y138: =SUM(Y$137+((Y$157-Y$137)*((X138-X$137)/(X$157-X$137)))) -> 53.2
A139: 137 | B139: 52.25 | H139: 137 | I139: 52.35138705 | O139: 137 | P139: 29.96 | X139: 142 | Y139: 53.4
A140: 138 | B140: 52.5 | H140: 138 | I140: 52.60237781 | O140: 138 | P140: 30.04 | X140: 143 | Y140: 53.6
A141: 139 | B141: 52.75 | H141: 139 | I141: 52.85336856 | O141: 139 | P141: 30.12 | X141: 144 | Y141: 53.8
A142: 140 | B142: 53 | H142: 140 | I142: 53.10435931 | O142: 140 | P142: 30.2 | X142: 145 | Y142: 54
A143: 141 | B143: 53.2 | H143: 141 | I143: =SUM($F$28+(($F$29-$F$28)*((H143-$E$28)/($E$29-$E$28)))) -> 53.30250991 | O143: 141 | P143: 30.28 | X143: 146 | Y143: 54.2
A144: 142 | B144: 53.4 | H144: 142 | I144: =SUM($F$28+(($F$29-$F$28)*((H144-$E$28)/($E$29-$E$28)))) -> 53.5006605 | O144: 142 | P144: 30.36 | X144: 147 | Y144: 54.4
A145: 143 | B145: 53.6 | H145: 143 | I145: 53.6988111 | O145: 143 | P145: 30.44 | X145: 148 | Y145: 54.6
A146: 144 | B146: 53.8 | H146: 144 | I146: 53.89696169 | O146: 144 | P146: 30.52 | X146: 149 | Y146: 54.8
A147: 145 | B147: 54 | H147: 145 | I147: 54.09511229 | O147: 145 | P147: 30.6 | X147: 150 | Y147: 55
A148: 146 | B148: 54.2 | H148: 146 | I148: 54.29326288 | O148: 146 | P148: 30.68 | X148: 151 | Y148: 55.2
A149: 147 | B149: 54.4 | H149: 147 | I149: 54.49141347 | O149: 147 | P149: 30.76 | X149: 152 | Y149: 55.4
A150: 148 | B150: 54.6 | H150: 148 | I150: 54.68956407 | O150: 148 | P150: 30.84 | X150: 153 | Y150: 55.6
A151: 149 | B151: 54.8 | H151: 149 | I151: 54.88771466 | O151: 149 | P151: 30.92 | X151: 154 | Y151: 55.8
A152: 150 | B152: 55 | H152: 150 | I152: 55.08586526 | O152: 150 | P152: 31 | X152: 155 | Y152: 56
A153: 151 | B153: 55.2 | H153: 151 | I153: 55.28401585 | O153: 151 | P153: =SUM($M$9+(($M$10-$M$9)*((O153-$L$9)/($L$10-$L$9)))) -> 31.1 | X153: 156 | Y153: 56.2
A154: 152 | B154: 55.4 | H154: 152 | I154: 55.48216645 | O154: 152 | P154: =SUM($M$9+(($M$10-$M$9)*((O154-$L$9)/($L$10-$L$9)))) -> 31.2 | X154: 157 | Y154: 56.4
A155: 153 | B155: 55.6 | H155: 153 | I155: 55.68031704 | O155: 153 | P155: 31.3 | X155: 158 | Y155: 56.6
A156: 154 | B156: 55.8 | H156: 154 | I156: 55.87846764 | O156: 154 | P156: 31.4 | X156: 159 | Y156: 56.8
A157: 155 | B157: 56 | H157: 155 | I157: 56.07661823 | O157: 155 | P157: 31.5 | X157: 160 | Y157: 57
A158: 156 | B158: 56.2 | H158: 156 | I158: 56.27476882 | O158: 156 | P158: 31.6 | X158: 161 | Y158: =SUM(Y$157+((Y$177-Y$157)*((X158-X$157)/(X$177-X$157)))) -> 57.2
A159: 157 | B159: 56.4 | H159: 157 | I159: 56.47291942 | O159: 157 | P159: 31.7 | X159: 162 | Y159: 57.4
A160: 158 | B160: 56.6 | H160: 158 | I160: 56.67107001 | O160: 158 | P160: 31.8 | X160: 163 | Y160: 57.6
A161: 159 | B161: 56.8 | H161: 159 | I161: 56.86922061 | O161: 159 | P161: 31.9 | X161: 164 | Y161: 57.8
A162: 160 | B162: 57 | H162: 160 | I162: 57.0673712 | O162: 160 | P162: 32 | X162: 165 | Y162: 58
A163: 161 | B163: 57.2 | H163: 161 | I163: =SUM($F$29+(($F$30-$F$29)*((H163-$E$29)/($E$30-$E$29)))) -> 57.2655218 | O163: 161 | P163: 32.1 | X163: 166 | Y163: 58.2
A164: 162 | B164: 57.4 | H164: 162 | I164: =SUM($F$29+(($F$30-$F$29)*((H164-$E$29)/($E$30-$E$29)))) -> 57.46367239 | O164: 162 | P164: 32.2 | X164: 167 | Y164: 58.4
A165: 163 | B165: 57.6 | H165: 163 | I165: 57.66182299 | O165: 163 | P165: 32.3 | X165: 168 | Y165: 58.6
A166: 164 | B166: 57.8 | H166: 164 | I166: 57.85997358 | O166: 164 | P166: 32.4 | X166: 169 | Y166: 58.8
A167: 165 | B167: 58 | H167: 165 | I167: 58.05812417 | O167: 165 | P167: 32.5 | X167: 170 | Y167: 59
A168: 166 | B168: 58.2 | H168: 166 | I168: 58.25627477 | O168: 166 | P168: 32.6 | X168: 171 | Y168: 59.2
A169: 167 | B169: 58.4 | H169: 167 | I169: 58.45442536 | O169: 167 | P169: 32.7 | X169: 172 | Y169: 59.4
A170: 168 | B170: 58.6 | H170: 168 | I170: 58.65257596 | O170: 168 | P170: 32.8 | X170: 173 | Y170: 59.6
A171: 169 | B171: 58.8 | H171: 169 | I171: 58.85072655 | O171: 169 | P171: 32.9 | X171: 174 | Y171: 59.8
A172: 170 | B172: 59 | H172: 170 | I172: 59.04887715 | O172: 170 | P172: 33 | X172: 175 | Y172: 60
A173: 171 | B173: 59.2 | H173: 171 | I173: 59.24702774 | O173: 171 | P173: 33.1 | X173: 176 | Y173: 60.2
A174: 172 | B174: 59.4 | H174: 172 | I174: 59.44517834 | O174: 172 | P174: 33.2 | X174: 177 | Y174: 60.4
A175: 173 | B175: 59.6 | H175: 173 | I175: 59.64332893 | O175: 173 | P175: 33.3 | X175: 178 | Y175: 60.6
A176: 174 | B176: 59.8 | H176: 174 | I176: 59.84147952 | O176: 174 | P176: 33.4 | X176: 179 | Y176: 60.8
A177: 175 | B177: 60 | H177: 175 | I177: 60.03963012 | O177: 175 | P177: 33.5 | X177: 180 | Y177: 61
A178: 176 | B178: 60.2 | H178: 176 | I178: 60.23778071 | O178: 176 | P178: =SUM($M$10+(($M$11-$M$10)*((O178-$L$10)/($L$11-$L$10)))) -> 33.56 | X178: 181 | Y178: =SUM(Y$177+((Y$197-Y$177)*((X178-X$177)/(X$197-X$177)))) -> 61.2
A179: 177 | B179: 60.4 | H179: 177 | I179: 60.43593131 | O179: 177 | P179: =SUM($M$10+(($M$11-$M$10)*((O179-$L$10)/($L$11-$L$10)))) -> 33.62 | X179: 182 | Y179: 61.4
A180: 178 | B180: 60.6 | H180: 178 | I180: 60.6340819 | O180: 178 | P180: 33.68 | X180: 183 | Y180: 61.6
A181: 179 | B181: 60.8 | H181: 179 | I181: 60.8322325 | O181: 179 | P181: 33.74 | X181: 184 | Y181: 61.8
A182: 180 | B182: 61 | H182: 180 | I182: 61.03038309 | O182: 180 | P182: 33.8 | X182: 185 | Y182: 62
A183: 181 | B183: 61.2 | H183: 181 | I183: =SUM($F$30+(($F$31-$F$30)*((H183-$E$30)/($E$31-$E$30)))) -> 61.22853369 | O183: 181 | P183: 33.86 | X183: 186 | Y183: 62.2
A184: 182 | B184: 61.4 | H184: 182 | I184: =SUM($F$30+(($F$31-$F$30)*((H184-$E$30)/($E$31-$E$30)))) -> 61.42668428 | O184: 182 | P184: 33.92 | X184: 187 | Y184: 62.4
A185: 183 | B185: 61.6 | H185: 183 | I185: 61.62483487 | O185: 183 | P185: 33.98 | X185: 188 | Y185: 62.6
A186: 184 | B186: 61.8 | H186: 184 | I186: 61.82298547 | O186: 184 | P186: 34.04 | X186: 189 | Y186: 62.8
A187: 185 | B187: 62 | H187: 185 | I187: 62.02113606 | O187: 185 | P187: 34.1 | X187: 190 | Y187: 63
A188: 186 | B188: 62.2 | H188: 186 | I188: 62.21928666 | O188: 186 | P188: 34.16 | X188: 191 | Y188: 63.2
A189: 187 | B189: 62.4 | H189: 187 | I189: 62.41743725 | O189: 187 | P189: 34.22 | X189: 192 | Y189: 63.4
A190: 188 | B190: 62.6 | H190: 188 | I190: 62.61558785 | O190: 188 | P190: 34.28 | X190: 193 | Y190: 63.6
A191: 189 | B191: 62.8 | H191: 189 | I191: 62.81373844 | O191: 189 | P191: 34.34 | X191: 194 | Y191: 63.8
A192: 190 | B192: 63 | H192: 190 | I192: 63.01188904 | O192: 190 | P192: 34.4 | X192: 195 | Y192: 64
A193: 191 | B193: 63.2 | H193: 191 | I193: 63.21003963 | O193: 191 | P193: 34.46 | X193: 196 | Y193: 64.2
A194: 192 | B194: 63.4 | H194: 192 | I194: 63.40819022 | O194: 192 | P194: 34.52 | X194: 197 | Y194: 64.4
A195: 193 | B195: 63.6 | H195: 193 | I195: 63.60634082 | O195: 193 | P195: 34.58 | X195: 198 | Y195: 64.6
A196: 194 | B196: 63.8 | H196: 194 | I196: 63.80449141 | O196: 194 | P196: 34.64 | X196: =X195+1 -> 199 | Y196: 64.8
A197: 195 | B197: 64 | H197: 195 | I197: 64.00264201 | O197: 195 | P197: 34.7 | X197: 200 | Y197: 65
A198: 196 | B198: 64.2 | H198: 196 | I198: 64.2007926 | O198: 196 | P198: 34.76 | X198: 201 | Y198: =SUM(Y$197+((Y$222-Y$197)*((X198-X$197)/(X$222-X$197)))) -> 65.2
A199: 197 | B199: 64.4 | H199: 197 | I199: 64.3989432 | O199: 197 | P199: 34.82 | X199: 202 | Y199: 65.4
A200: 198 | B200: 64.6 | H200: 198 | I200: 64.59709379 | O200: 198 | P200: 34.88 | X200: 203 | Y200: 65.6
... 2050 more rows
